fUSD/lending_fUSD_20240927
["ID","MTS","AMOUNT","RATE_DAILY","PERIOD"]
[339268620,1727423431930,-500.0,0.00011305,2]
[339268621,1727423431941,-504.59041284,0.00011305,2]
[339268622,1727423431953,-231.53206746,0.00011305,2]
[339268623,1727423431962,-200.0,0.00011415,2]
[339268624,1727423431971,-139.98908752,0.00011415,2]
[339268625,1727423431985,-360.01091248,0.00011415,2]
[339268626,1727423431995,-1587.87,0.00011415,2]
[339268627,1727423432004,-904.01,0.00011415,2]
[339268628,1727423432015,-600.0,0.00011436,2]
[339268629,1727423432025,-9855.6159,0.00011439,2]
[339268630,1727423432036,-250.0,0.00011447,2]
[339268631,1727423432046,-698.27,0.00011458,2]
[339268632,1727423432056,-231.19,0.00011463,2]
[339268633,1727423432065,-250.0,0.00011495,2]
[339268634,1727423432076,-14681.34810774,0.00011495,2]
[339268635,1727423432087,-9423.99800782,0.00011495,2]
[339268636,1727423432099,-332.75527609,0.00011495,2]
[339268637,1727423432112,-1231.85132041,0.00011495,2]
[339268638,1727423432124,-311.84172578,0.00011495,2]
[339268639,1727423432147,-833.36001832,0.00011495,2]
[339268640,1727423432159,-796.89416303,0.00011495,2]
[339268641,1727423432169,-3162.2,0.00011495,2]
[339268642,1727423432181,-13648.14304269,0.00011495,2]
[339268643,1727423432191,-16817.08833812,0.00011495,2]
[339268644,1727423432201,-499.99,0.00011495,2]
[339268645,1727423432211,-941.45,0.00011519,2]
[339268646,1727423432221,-250.0,0.00011539,2]
[339268647,1727423432230,-9702.2736,0.00011576,2]
[339268648,1727423432240,-150.0,0.000116,2]
[339268649,1727423432249,-1614.36,0.00011669,2]
[339268650,1727423432259,-150.0,0.00011688,2]
[339268651,1727423432268,-150.0,0.00011688,2]
[339268652,1727423432277,-150.0,0.00011688,2]
[339268653,1727423432286,-292.38079082,0.00011688,2]
[339268654,1727423432296,-271.39998586,0.00011688,2]
[339268655,1727423432305,-1500.0,0.00011699,2]
[339268656,1727423432315,-1100.0,0.00011712,2]
[339268657,1727423432324,-500.0,0.00011712,2]
[339268658,1727423432333,-500.0,0.00011712,2]
[339268659,1727423432342,-150.0,0.00011736,2]
[339268660,1727423432351,-400.0,0.00011746,2]
[339268661,1727423432361,-190.2,0.00011763,2]
[339268662,1727423432370,-150.0,0.00011784,2]
[339268663,1727423432380,-150.0,0.00011832,2]
[339268664,1727423432391,-2605.77,0.00011845,2]
[339268665,1727423432400,-150.0,0.0001188,2]
[339268666,1727423432409,-700.0,0.000119,4]
[339268667,1727423432419,-150.0,0.00011928,2]
[339268668,1727423432427,-150.0,0.00011976,2]
[339268669,1727423432436,-1400.0,0.00012,4]
[339268670,1727423432446,-150.0,0.00012024,2]
[339268671,1727423432456,-150.0,0.00012024,2]
[339268672,1727423432465,-317.83,0.00012055,2]
[339268673,1727423432475,-150.0,0.00012072,2]
[339268674,1727423432487,-190.58,0.00012081,2]
[339268675,1727423432496,-2100.0,0.000121,4]
[339268676,1727423432505,-150.0,0.00012121,2]
[339268677,1727423432515,-150.0,0.00012169,2]
[339268678,1727423432524,-428.31,0.00012192,2]
[339268679,1727423432534,-150.0,0.00012192,2]
[339268680,1727423432543,-2800.0,0.000122,4]
[339268681,1727423432553,-150.0,0.00012217,2]
[339268682,1727423432564,-150.0,0.00012265,2]
[339268683,1727423432574,-150.0,0.000123,2]
[339268684,1727423432583,-3500.0,0.000123,4]
[339268685,1727423432592,-150.0,0.00012313,2]
[339268686,1727423432602,-3847.37,0.00012329,2]
[339268687,1727423432613,-1600.0,0.0001233,2]
[339268688,1727423432622,-420.0,0.00012356,2]
[339268689,1727423432632,-150.0,0.00012361,2]
[339268690,1727423432641,-622.263839,0.0001239,2]
[339268691,1727423432650,-700.0,0.000124,4]
[339268692,1727423432660,-150.0,0.00012409,2]
[339268693,1727423432669,-150.0,0.00012457,2]
[339268694,1727423432678,-700.0,0.000125,4]
[339268695,1727423432687,-150.0,0.00012505,2]
[339268696,1727423432696,-622.263839,0.00012545,2]
[339268697,1727423432705,-150.0,0.00012553,2]
[339268698,1727423432714,-700.0,0.000126,4]
[339268699,1727423432724,-150.0,0.00012602,2]
[339268700,1727423432734,-410.58278229,0.00012617,2]
[339268701,1727423432743,-150.0,0.0001265,2]
[339268702,1727423432753,-150.0,0.00012698,2]
[339268703,1727423432763,-622.263839,0.000127,2]
[339268704,1727423432772,-700.0,0.000127,4]
[339268705,1727423432782,-150.0,0.00012746,2]
[339268706,1727423432791,-8250.4526,0.00012752,2]
[339268707,1727423432800,-1000.0,0.00012752,2]
[339268708,1727423432809,-2117.5066,0.00012752,2]
[339268709,1727423432819,-2967.996,0.00012752,2]
[339268710,1727423432829,-150.0,0.00012794,2]
[339268711,1727423432839,-268.6124,0.00012799,2]
[339268712,1727423432848,-170.3127,0.000128,2]
[339268713,1727423432858,-150.0,0.000128,2]
[339268714,1727423432868,-944.0,0.000128,4]
[339268715,1727423432877,-150.0,0.00012842,2]
[339268716,1727423432888,-500.0,0.00012846,2]
[339268717,1727423432897,-152.64224493,0.0001285,2]
[339268718,1727423432906,-622.263839,0.00012855,2]
[339268719,1727423432915,-600.0,0.00012866,2]
[339268720,1727423432924,-488.032,0.00012866,2]
[339268721,1727423432934,-158.655,0.00012866,2]
[339268722,1727423432943,-827.0,0.0001287,2]
[339268723,1727423432953,-1850.0,0.0001289,2]
[339268724,1727423432962,-2680.17770581,0.0001289,3]
[339268725,1727423432971,-1850.0,0.0001289,4]
[339268726,1727423432980,-150.0,0.0001289,2]
[339268727,1727423432989,-200.0,0.00012895,2]
[339268728,1727423432999,-1192.64,0.00012895,2]
[339268729,1727423433009,-231.19,0.00012896,2]
[339268730,1727423433018,-1192.64,0.00012899,2]
[339268731,1727423433028,-1192.64,0.00012899,2]
[339268732,1727423433038,-1192.64,0.00012899,2]
[339268733,1727423433048,-1192.64,0.00012899,2]
[339268734,1727423433057,-1192.64,0.00012899,2]
[339268735,1727423433067,-1192.64,0.00012899,2]
[339268736,1727423433077,-1192.64,0.00012899,2]
[339268737,1727423433087,-1192.64,0.00012899,2]
[339268738,1727423433096,-1192.64,0.00012899,2]
[339268739,1727423433105,-1192.64,0.00012899,2]
[339268740,1727423433115,-1192.64,0.00012899,2]
[339268741,1727423433125,-1192.64,0.00012899,2]
[339268742,1727423433137,-1192.64,0.00012899,2]
[339268743,1727423433147,-1192.64,0.00012899,2]
[339268744,1727423433157,-1192.64,0.00012899,2]
[339268745,1727423433166,-1192.64,0.00012899,2]
[339268746,1727423433175,-606.01707681,0.00012899,2]
[339268747,1727423438118,-9168.20741229,0.00011148,2]
[339268748,1727423438129,-348.37028328,0.00012694,2]
[339268749,1727423438142,-586.62292319,0.00012899,2]
[339268750,1727423438151,-1192.64,0.00012899,2]
[339268751,1727423438161,-1192.64,0.00012899,2]
[339268752,1727423438170,-1192.64,0.00012899,2]
[339268753,1727423438179,-1192.64,0.00012899,2]
[339268754,1727423438189,-1192.64,0.00012899,2]
[339268755,1727423438199,-1192.80776445,0.00012899,2]
[339268756,1727423438208,-4700.18,0.000129,2]
[339268757,1727423438217,-166.49003886,0.000129,2]
[339268758,1727423438229,-173.50996114,0.000129,2]
[339268759,1727423438238,-151.0,0.000129,2]
[339268760,1727423438247,-151.0,0.000129,2]
[339268761,1727423438256,-151.0,0.000129,2]
[339268762,1727423438266,-622.31731379,0.000129,2]
[339268763,1727423438277,-142.82538621,0.000129,2]
[339268764,1727423438287,-597.4387,0.000129,2]
[339268765,1727423438297,-339.7032,0.000129,2]
[339268766,1727423438306,-1357.063,0.000129,2]
[339268767,1727423438315,-1560.0905,0.000129,2]
[339268768,1727423438325,-1302.419,0.000129,2]
[339268769,1727423438335,-5611.89980125,0.000129,2]
[339268770,1727423438349,-740.34726879,0.000129,2]
[339268771,1727423438360,-1954.87549614,0.000129,2]
[339268772,1727423438373,-1029.61353382,0.000129,2]
[339268773,1727423438382,-31.04595251,0.000129,2]
[339268774,1727423438393,-18042.49512,0.000129,2]
[339268775,1727423438405,-1362.07271568,0.000129,2]
[339268776,1727423438420,-2222.34255927,0.000129,2]
[339268777,1727423438432,-1363.28313491,0.000129,2]
[339268778,1727423438443,-3679.91291763,0.000129,2]
[339268779,1727423438452,-166.02661025,0.000129,2]
[339268780,1727423438461,-163.90590921,0.000129,2]
[339268781,1727423438470,-167.69038639,0.000129,2]
[339268782,1727423438479,-350.01454665,0.000129,2]
[339268783,1727423438491,-4546.94216423,0.000129,2]
[339268784,1727423438501,-155.0,0.0001293,2]
[339268785,1727423438511,-150.0,0.00012938,2]
[339268786,1727423438520,-186.56,0.00012958,2]
[339268787,1727423438531,-275.78800075,0.00012973,2]
[339268788,1727423438540,-500.0,0.00012973,2]
[339268789,1727423438549,-500.0,0.00012973,2]
[339268790,1727423438558,-157.94662144,0.00012986,2]
[339268791,1727423438569,-150.0,0.00012986,2]
[339268792,1727423438578,-152.3,0.0001299,2]
[339268793,1727423438587,-151.0,0.00012991,2]
[339268794,1727423438597,-340.19100037,0.00012999,2]
[339268795,1727423438606,-500.0,0.00012999,2]
[339268796,1727423438617,-500.0,0.00012999,2]
[339268797,1727423438626,-500.0,0.00012999,2]
[339268799,1727423438637,-374.04281559,0.00012999,2]
[339268801,1727423438647,-500.0,0.00012999,2]
[339268804,1727423438659,-155.56580904,0.00012999,2]
[339268806,1727423438670,-563.0,0.00013,2]
[339268808,1727423438679,-15451.73871498,0.00013,2]
[339268810,1727423438691,-430.48305069,0.00013,2]
[339268812,1727423438704,-56478.55312075,0.00013,2]
[339268815,1727423438719,-1130.278736,0.00013,2]
[339268817,1727423438730,-570.55999995,0.00013,2]
[339268838,1727423438909,-703.20536157,0.00013,2]
[339268842,1727423438921,-2193.60921575,0.00013,2]
[339268845,1727423438932,-1335.85121143,0.00013,2]
[339268847,1727423438944,-2076.34305428,0.00013,2]
[339268849,1727423438957,-19066.24339577,0.00013,2]
[339268852,1727423438968,-67554.72629143,0.00013,2]
[339268854,1727423438980,-936.57517165,0.00013,2]
[339268856,1727423438993,-23406.47410261,0.00013,2]
[339268859,1727423439005,-3007.22553722,0.00013,2]
[339268861,1727423439016,-12680.68088358,0.00013,2]
[339268863,1727423439027,-23201.59460105,0.00013,2]
[339268865,1727423439036,-300.0,0.00013,7]
[339268867,1727423439045,-3927.05664719,0.00013,2]
[339268869,1727423439056,-303.16003,0.00013,2]
[339268871,1727423439066,-315.0,0.00013,2]
[339268961,1727423439892,-576.99,0.00013,2]
[339268963,1727423439903,-267296.12837712,0.00013,2]
[339268965,1727423439912,-586031.7178302,0.00013,2]
[339268968,1727423439923,-5380.48614854,0.00013,2]
[339268970,1727423439934,-467.84357261,0.00013,2]
[339268972,1727423439945,-1608.91586877,0.00013,2]
[339268974,1727423439956,-187080.7967188,0.00013,2]
[339268976,1727423439967,-29574.57782437,0.00013,2]
[339268981,1727423440001,-17763.29560768,0.00013,2]
[339268983,1727423440011,-63394.02948113,0.00013,2]
[339268985,1727423440022,-583.86285183,0.00013,2]
[339268988,1727423440033,-217710.0,0.00013,2]
[339268991,1727423440058,-538867.72621972,0.00013,2]
[339268994,1727423440070,-24090.60521142,0.00013,2]
[339268996,1727423440081,-24929.11631104,0.00013,2]
[339268998,1727423440093,-137085.91014143,0.00013,2]
[339269000,1727423440104,-2409.35153101,0.00013,2]
[339269002,1727423440115,-7180.06767896,0.00013,2]
[339269004,1727423440126,-3112.16305256,0.00013,2]
[339269006,1727423440137,-923.08443828,0.00013,2]
[339269008,1727423440147,-1103.41846136,0.00013,2]
[339269010,1727423440159,-59687.47526315,0.00013,2]
[339269013,1727423440171,-1092.27862809,0.00013,2]
[339269015,1727423440182,-733.77576759,0.00013,2]
[339269017,1727423440193,-614.26294279,0.00013,2]
[339269232,1727423443068,-348.37028322,0.00012717,2]
[339269234,1727423443079,-1078613.90444651,0.00013,2]
[339269236,1727423443089,-543245.24040321,0.00013,2]
[339269252,1727423443230,-1593.8,0.00013,2]
[339269513,1727423445862,176.07,9.934e-05,2]
[339269516,1727423445876,-1748.03062998,0.00012653,2]
[339269528,1727423445990,-6632.2395837,0.00012653,2]
[339269544,1727423446130,-1828.14693532,0.00012653,2]
[339269546,1727423446140,-348.37028322,0.0001274,2]
[339269549,1727423446150,-506.0,0.00013,2]
[339269550,1727423446159,-12022.48278146,0.00013,2]
[339269835,1727423476996,2595.91,0.00010309,2]
[339269836,1727423477324,500.0,0.00010068,2]
[339269837,1727423478587,1000.0,8.972e-05,2]
[339269838,1727423480159,1000.0,0.00010342,2]
[339269839,1727423480538,900.0,0.00010068,2]
[339269840,1727423480886,500.0,8.972e-05,2]
[339269841,1727423546098,1050.0,0.00011,2]
[339269842,1727423555026,884.62,0.000149,31]
[339269843,1727423555088,884.62,0.000149,31]
[339269844,1727423555139,884.62,0.000149,31]
[339269845,1727423555203,884.62,0.000149,31]
[339269846,1727423555263,884.62,0.000149,31]
[339269847,1727423555332,884.62,0.000149,31]
[339269848,1727423555529,884.62,0.000149,31]
[339269849,1727423555561,884.62,0.000149,31]
[339269850,1727423555588,884.62,0.000149,31]
[339269851,1727423555615,884.62,0.000149,31]
[339269852,1727423555642,884.62,0.000149,31]
[339269853,1727423555684,884.62,0.000149,31]
[339269854,1727423555746,884.62,0.000149,31]
[339269855,1727423555808,884.62,0.000149,31]
[339269856,1727423556049,884.62,0.000149,31]
[339269857,1727423556078,884.62,0.000149,31]
[339269858,1727423825214,150.0,0.00011107,2]
[339269859,1727423825234,277.89,0.00011107,2]
[339269860,1727423842874,10000.0,0.00011106,2]
[339269861,1727423862191,4767.09,0.00011106,2]
[339269862,1727423906457,155.2,0.00010959,2]
[339269863,1727423907240,9572.11,0.00011106,2]
[339269864,1727423941608,413.0897702,0.00015,30]
[339269865,1727423973910,211.88,9.589e-05,2]
[339269866,1727423988458,176.07,9.278e-05,2]
[339269867,1727424033010,2485.63,9.702e-05,2]
[339269868,1727424167540,743.15,0.000149,31]
[339269869,1727424167599,743.15,0.000149,31]
[339269870,1727424167634,743.15,0.000149,31]
[339269871,1727424167661,743.15,0.000149,31]
[339269872,1727424167717,743.15,0.000149,31]
[339269873,1727424167780,743.15,0.000149,31]
[339269874,1727424167840,743.15,0.000149,31]
[339269875,1727424167904,743.15,0.000149,31]
[339269876,1727424167966,743.15,0.000149,31]
[339269877,1727424168027,743.15,0.000149,31]
[339269878,1727424168095,743.15,0.000149,31]
[339269879,1727424168158,743.15,0.000149,31]
[339269880,1727424168230,743.15,0.000149,31]
[339269881,1727424168302,743.15,0.000149,31]
[339269882,1727424168387,743.15,0.000149,31]
[339269883,1727424168480,743.15,0.000149,31]
[339269884,1727424210802,150.0,0.00015508,120]
[339269885,1727424535023,11512.0,0.000106,5]
[339269886,1727424535268,11512.0,0.000104,3]
[339269887,1727424535505,23024.0,0.000102,2]
[339269934,1727424555373,9528.17581389,6.781e-05,7]
[339269965,1727424632051,-562.56728795,0.00011238,2]
[339269966,1727424632063,-287.37338502,0.00011238,2]
[339269967,1727424632106,-4411.92248121,0.00011238,2]
[339269968,1727424632117,-777.495996,0.00011238,2]
[339269969,1727424632129,-47.84916334,0.00011238,2]
[339269970,1727424632139,-374.088873,0.00011281,2]
[339269971,1727424632148,-201.80285421,0.00011338,2]
[339269972,1727424632158,-225.67,0.00011387,2]
[339269973,1727424632173,-250.0,0.00011414,2]
[339269974,1727424632183,-152.16,0.00011423,2]
[339269975,1727424632192,-1119.75,0.00011434,2]
[339269976,1727424632203,-273.07910946,0.00011438,2]
[339269977,1727424632215,-626.92089054,0.00011438,2]
[339269978,1727424632224,-1345.25558946,0.0001144,2]
[339269979,1727424632240,-463.27441054,0.0001144,2]
[339269980,1727424632251,-250.0,0.0001144,2]
[339269981,1727424632261,-589.5,0.0001149,2]
[339269982,1727424632270,-190.28,0.00011499,2]
[339269983,1727424632280,-1444.07600743,0.000115,2]
[339269984,1727424632291,-521.44331218,0.000115,2]
[339269985,1727424632303,-842.86362775,0.000115,2]
[339269986,1727424632314,-1096.56812033,0.000115,2]
[339269987,1727424632335,-1703.61103245,0.000115,2]
[339269988,1727424632347,-2470.24297497,0.000115,2]
[339269989,1727424632359,-495.68788496,0.000115,2]
[339269990,1727424632370,-2987.59874654,0.000115,2]
[339269993,1727424632527,-2022.98829339,0.000115,2]
[339269995,1727424632537,-1000.0,0.00011524,2]
[339269997,1727424632547,-1389.55,0.00011525,2]
[339269999,1727424632556,-430.39859673,0.00011567,2]
[339270001,1727424632568,-1664.79140327,0.00011567,2]
[339270003,1727424632577,-923.21,0.00011567,2]
[339270005,1727424632587,-150.0,0.00011567,2]
[339270007,1727424632598,-98.32717372,0.00011568,2]
[339270010,1727424632609,-499.46313278,0.00011568,2]
[339270018,1727424638217,-623.44199861,0.00011568,2]
[339270019,1727424638376,-22678.76769489,0.00011568,2]
[339270020,1727424638385,-374.3,0.00011568,2]
[339270021,1727424638395,-150.0,0.00011688,2]
[339270022,1727424638404,-155.85555883,0.00011688,2]
[339270023,1727424638413,-1000.0,0.00011712,2]
[339270024,1727424638424,-500.0,0.00011712,2]
[339270025,1727424638433,-196.1047,0.00011741,2]
[339270026,1727424638443,-178.33,0.00011782,2]
[339270027,1727424638452,-2485.63,0.00011966,2]
[339270028,1727424638462,-211.88,0.00012055,2]
[339270029,1727424638471,-150.0,0.00012192,2]
[339270030,1727424638481,-300.0,0.00012192,2]
[339270031,1727424638491,-358.25,0.00012192,2]
[339270032,1727424638500,-428.31,0.00012192,2]
[339270033,1727424638509,-358.25,0.00012192,2]
[339270034,1727424638519,-358.25,0.00012192,2]
[339270035,1727424638528,-358.25,0.00012192,2]
[339270036,1727424638537,-358.25,0.00012192,2]
[339270037,1727424638546,-516.48,0.00012192,2]
[339270038,1727424638555,-480.378276,0.0001239,2]
[339270039,1727424638565,-273.105574,0.0001239,2]
[339270040,1727424638574,-480.378276,0.00012545,2]
[339270041,1727424638583,-273.105574,0.00012545,2]
[339270043,1727424638593,-255.0,0.00012631,2]
[339270045,1727424638603,-480.378276,0.000127,2]
[339270046,1727424638612,-273.105574,0.000127,2]
[339270048,1727424638621,-421.94785814,0.00012716,2]
[339270050,1727424638631,-816.17935072,0.00012789,2]
[339270052,1727424638641,-18323.1084,0.00012799,2]
[339270054,1727424638650,-500.0,0.00012808,2]
[339270056,1727424638659,-11439.549,0.00012808,2]
[339270058,1727424638669,-900.0,0.00012808,2]
[339270060,1727424638678,-152.16,0.00012851,2]
[339270062,1727424638687,-480.378276,0.00012855,2]
[339270064,1727424638696,-273.105574,0.00012855,2]
[339270066,1727424638706,-517.131,0.00012855,2]
[339270068,1727424638715,-160.255,0.00012855,2]
[339270069,1727424638725,-2500.0,0.0001288,2]
[339270071,1727424638734,-243.85919829,0.0001289,2]
[339270073,1727424638743,-243.85919825,0.00012891,2]
[339270074,1727424638754,-243.85919825,0.00012892,2]
[339270076,1727424638764,-243.85919825,0.00012893,2]
[339270078,1727424638773,-243.85919825,0.00012894,2]
[339270080,1727424638783,-500.0,0.00012895,2]
[339270082,1727424638791,-200.0,0.00012895,2]
[339270084,1727424638801,-243.85919825,0.00012896,2]
[339270086,1727424638810,-500.0,0.00012896,2]
[339270088,1727424638819,-500.0,0.00012896,2]
[339270090,1727424638830,-200.0,0.00012896,2]
[339270092,1727424638839,-243.85919825,0.00012897,2]
[339270094,1727424638849,-243.85919825,0.00012898,2]
[339270096,1727424638859,-243.85919825,0.00012899,2]
[339270098,1727424638868,-7407.8899,0.000129,2]
[339270100,1727424638877,-9512.4141,0.000129,2]
[339270102,1727424638886,-5850.2933,0.000129,2]
[339270104,1727424638895,-6031.2183,0.000129,2]
[339270106,1727424638905,-171.7976515,0.000129,2]
[339270108,1727424638915,-162.78018815,0.000129,2]
[339270110,1727424638926,-163.9059092,0.000129,2]
[339270112,1727424638935,-243.85919825,0.000129,2]
[339270114,1727424638945,-643.36009821,0.000129,2]
[339270116,1727424638955,-1000.0,0.00012964,2]
[339270118,1727424638964,-500.0,0.00012973,2]
[339270120,1727424638974,-500.0,0.00012973,2]
[339270122,1727424638983,-177004.95454471,0.0001298,3]
[339270124,1727424638993,-186.49,0.0001299,2]
[339270126,1727424639003,-393.5234675,0.00012993,2]
[339270128,1727424639012,-3341.9611251,0.00012993,2]
[339270130,1727424639022,-500.0,0.00012999,2]
[339270132,1727424639033,-500.0,0.00012999,2]
[339270134,1727424639042,-500.0,0.00012999,2]
[339270136,1727424639052,-500.0,0.00012999,2]
[339270138,1727424639061,-216.37390165,0.00012999,2]
[339270140,1727424639071,-21020.58551706,0.00012999,2]
[339270142,1727424639080,-5882.79785396,0.00012999,2]
[339270144,1727424639089,-52108.8054547,0.00012999,2]
[339270146,1727424639099,-2000.0,0.00012999,2]
[339270148,1727424639108,-9323.22973834,0.00013,2]
[339270150,1727424639120,-2957.02569661,0.00013,2]
[339270152,1727424639132,-2744.38456505,0.00013,2]
[339270154,1727424639141,-989.13457683,0.00013,2]
[339270156,1727424639156,-925.58977392,0.00013,2]
[339270158,1727424639171,-599.055,0.00013,2]
[339270161,1727424639182,-1332.05846622,0.00013,2]
[339270234,1727424640070,-1000.0,0.0001288,2]
[339270236,1727424640080,-1070.52541644,0.00013,2]
[339270239,1727424640092,-3257.921871,0.00013,2]
[339270241,1727424640104,-896.82497611,0.00013,2]
[339270243,1727424640115,-383.57266039,0.00013,2]
[339270245,1727424640127,-5771.00299894,0.00013,2]
[339270248,1727424640142,-656.946062,0.00013,2]
[339270250,1727424640153,-1023.25,0.00013,2]
[339270252,1727424640165,-1446.20110874,0.00013,2]
[339270255,1727424640179,-37533.08178596,0.00013,2]
[339270257,1727424640190,-1950.58610927,0.00013,2]
[339270258,1727424640201,-809.0606916,0.00013,2]
[339270260,1727424640212,-1467.29741007,0.00013,2]
[339270263,1727424640233,-480.17786687,0.00013,2]
[339270264,1727424640289,-581.0751696,0.00013,2]
[339270265,1727424640302,-2150.12840341,0.00013,2]
[339270266,1727424640343,-1221.18105363,0.00013,2]
[339270267,1727424640357,-867.74640596,0.00013,2]
[339270268,1727424640369,-1146.80056203,0.00013,2]
[339270269,1727424640381,-5291.6,0.00013,2]
[339270270,1727424640397,-135683.18277742,0.00013,2]
[339270271,1727424640408,-12040.06176256,0.00013,2]
[339270272,1727424640419,-3017.256,0.00013,2]
[339270273,1727424640431,-3380.424834,0.00013,2]
[339270274,1727424640452,-13897.01677292,0.00013,2]
[339270275,1727424640464,-264.4956,0.00013,2]
[339270276,1727424640476,-3274.14906833,0.00013,2]
[339270277,1727424640487,-428.25,0.00013,2]
[339270278,1727424640507,-362.572002,0.00013,2]
[339270279,1727424640520,-5578.94510997,0.00013,2]
[339270293,1727424643239,-305984.75587685,0.00013,2]
[339270294,1727424643251,-3087.7847,0.00013,2]
[339270295,1727424643264,-424.99528384,0.00013,2]
[339270296,1727424643343,-738.1314692,0.00013,2]
[339270297,1727424643354,-1243.9391314,0.00013,2]
[339270298,1727424643365,-997.62972712,0.00013,2]
[339270299,1727424643376,-334.30056307,0.00013,2]
[339270300,1727424643387,-2020.54450368,0.00013,2]
[339270301,1727424643398,-571.59772232,0.00013,2]
[339270302,1727424643410,-947.40643778,0.00013,2]
[339270303,1727424643420,-1921.39854665,0.00013,2]
[339270304,1727424643431,-340.68338463,0.00013,2]
[339270310,1727424645497,-7724.67253932,0.00013,2]
[339270311,1727424645508,-528.85885242,0.00013,2]
[339270312,1727424645519,-446.91429972,0.00013,2]
[339270313,1727424645534,-384.34999965,0.00013,2]
[339270314,1727424645545,-16535.4946002,0.00013,2]
[339270315,1727424645556,-25249.11904088,0.00013,2]
[339270322,1727424646096,-5114.97780404,0.00013,2]
[339270323,1727424646110,-3337.89376783,0.00013,2]
[339270324,1727424646151,-9309.10477623,0.00013,2]
[339270325,1727424646163,-371.88291753,0.00013,2]
[339270326,1727424646176,-1324.8,0.00013,2]
[339270327,1727424646188,-595.06691331,0.00013,2]
[339270328,1727424646199,-611.967,0.00013,2]
[339270329,1727424646210,-302.0,0.00013,2]
[339270330,1727424646223,-1668.32821834,0.00013,2]
[339270331,1727424646234,-25773.32341151,0.00013,2]
[339270332,1727424646245,-1645.60836346,0.00013,2]
[339270333,1727424646259,-957.52,0.00013,2]
[339270334,1727424646271,-14993.26991951,0.00013,2]
[339270335,1727424646282,-24500.0,0.00013,2]
[339270336,1727424646293,-1600.0,0.00013,2]
[339270337,1727424646304,-33176.91259541,0.00013,2]
[339270338,1727424646316,-1794.36314389,0.00013,2]
[339270339,1727424646329,-110673.88268203,0.00013,2]
[339270340,1727424646341,-3098.39071147,0.00013,2]
[339270341,1727424646352,-204244.37643279,0.00013,2]
[339270342,1727424646362,-61386.36394577,0.00013,2]
[339270343,1727424646373,-174057.3795909,0.00013,2]
[339270344,1727424646385,-173564.3292124,0.00013,2]
[339270345,1727424646398,-18012.73823,0.00013,2]
[339270346,1727424646409,-41234.6096,0.00013,2]
[339270347,1727424646420,-40637.43076967,0.00013,2]
[339270348,1727424646432,-11980.70439447,0.00013,2]
[339270349,1727424646445,-68335.58805646,0.00013,2]
[339270350,1727424646456,-1675.2,0.00013,2]
[339270351,1727424646468,-344.849717,0.00013,2]
[339270352,1727424646480,-896.1847932,0.00013,2]
[339270353,1727424670323,800.0,0.00010068,2]
[339270354,1727424671450,700.0,0.00010068,2]
[339270355,1727424680260,169.5,9.589e-05,2]
[339270356,1727424681035,2248.83,0.0001025,2]
[339270357,1727424691320,150.0,0.00015036,120]
[339270358,1727424717217,500.0,0.00010068,2]
[339270359,1727424779739,624.31,0.000149,31]
[339270360,1727424779801,624.31,0.000149,31]
[339270361,1727424779907,624.31,0.000149,31]